fUST/lending_fUST_20250529
["ID","MTS","AMOUNT","RATE_DAILY","PERIOD"]
[362898579,1748515844264,-500.0,0.00021164,2]
[362898582,1748515844274,-794.51798457,0.00021176,4]
[362898584,1748515844285,-478.64,0.00021369,2]
[362898586,1748515844295,-430.0,0.00021369,2]
[362898587,1748515844305,-794.51798457,0.00021383,5]
[362898590,1748515844314,-794.51798457,0.0002159,5]
[362898592,1748515844325,-478.64,0.00021643,2]
[362898594,1748515844335,-430.0,0.00021643,2]
[362898596,1748515844344,-794.51798457,0.00021797,6]
[362898598,1748515844354,-478.64,0.00021917,2]
[362898600,1748515844365,-71424.01,0.00022,7]
[362898601,1748515844375,-2219.14,0.00022,7]
[362898603,1748515844385,-1869.54,0.00022,2]
[362898605,1748515844394,-842.5625,0.00022,7]
[362898607,1748515844403,-794.51798457,0.00022003,6]
[362898609,1748515844413,-478.64,0.00022191,2]
[362898611,1748515844423,-794.51798457,0.0002221,6]
[362898613,1748515844432,-794.51798457,0.00022417,7]
[362898615,1748515844442,-207.4,0.00022424,2]
[362898617,1748515844451,-478.64,0.00022465,2]
[362898619,1748515844460,-794.51798457,0.00022624,7]
[362898621,1748515844469,-478.64,0.00022739,2]
[362898623,1748515844479,-794.51798457,0.00022831,8]
[362898625,1748515844488,-478.64,0.00023013,2]
[362898627,1748515844498,-794.51798457,0.00023038,8]
[362898629,1748515844507,-794.51798457,0.00023245,8]
[362898631,1748515844517,-478.64,0.00023287,2]
[362898633,1748515844526,-593.01,0.000233,2]
[362898635,1748515844536,-405.0,0.00023312,2]
[362898637,1748515844545,-500.0,0.00023356,2]
[362898639,1748515844554,-1869.54,0.000234,2]
[362898641,1748515844563,-794.51798457,0.00023452,9]
[362898643,1748515844572,-478.64,0.00023561,2]
[362898645,1748515844582,-71424.01,0.000236,7]
[362898647,1748515844591,-2219.14,0.000236,7]
[362898649,1748515844600,-794.51798457,0.00023659,9]
[362898651,1748515844609,-215.0738,0.00023793,2]
[362898653,1748515844619,-478.64,0.00023835,2]
[362898655,1748515844628,-794.51798457,0.00023866,10]
[362898657,1748515844638,-1000.0,0.00023986,3]
[362898659,1748515844646,-35800.63,0.00024,2]
[362898661,1748515844656,-903.32,0.00024,7]
[362898663,1748515844665,-1000.0,0.00024,2]
[362898665,1748515844675,-5000.0,0.00024,2]
[362898667,1748515844684,-2000.0,0.00024,2]
[362898669,1748515844694,-794.51798457,0.00024072,10]
[362898671,1748515844703,-216.8575,0.00024109,2]
[362898673,1748515844711,-478.64,0.00024109,2]
[362898675,1748515844721,-794.51798457,0.00024279,10]
[362898677,1748515844730,-478.64,0.00024383,2]
[362898679,1748515844739,-151.0,0.000244,5]
[362898681,1748515844749,-1045.157353,0.0002441,15]
[362898683,1748515844758,-794.51798457,0.00024486,11]
[362898685,1748515844768,-348.896235,0.000245,3]
[362898687,1748515844777,-1869.54,0.000245,2]
[362898689,1748515844787,-500.0,0.000245,2]
[362898691,1748515844796,-433.715,0.00024657,3]
[362898693,1748515844806,-478.64,0.00024657,2]
[362898695,1748515844816,-222.939979,0.00024658,2]
[362898697,1748515844825,-200.0,0.00024658,15]
[362898699,1748515844834,-794.51798457,0.00024693,11]
[362898701,1748515844844,-71424.01,0.000247,7]
[362898703,1748515844853,-2000.0,0.000248,2]
[362898705,1748515844862,-2000.0,0.000248,2]
[362898707,1748515844871,-178.28995814,0.000248,2]
[362898709,1748515844881,-2219.14,0.000249,7]
[362898711,1748515844890,-152.52,0.000249,31]
[362898713,1748515844899,-152.52,0.000249,31]
[362898715,1748515844908,-152.52,0.000249,31]
[362898717,1748515844917,-152.52,0.000249,31]
[362898719,1748515844926,-152.52,0.000249,31]
[362898721,1748515844935,-152.52,0.000249,31]
[362898723,1748515844944,-152.52,0.000249,31]
[362898725,1748515844953,-152.52,0.000249,31]
[362898727,1748515844963,-152.52,0.000249,31]
[362898729,1748515844972,-152.52,0.000249,31]
[362898731,1748515844981,-152.52,0.000249,31]
[362898733,1748515844990,-152.52,0.000249,31]
[362898735,1748515844999,-152.52,0.000249,31]
[362898737,1748515845009,-152.52,0.000249,31]
[362898739,1748515845018,-152.52,0.000249,31]
[362898741,1748515845028,-152.52,0.000249,31]
[362898743,1748515845041,-152.52,0.000249,31]
[362898745,1748515845050,-820435.208733,0.000249,2]
[362898747,1748515845059,-794.51798457,0.000249,12]
[362898749,1748515845068,-478.64,0.00024931,2]
[362898751,1748515845078,-295.45837883,0.00025,2]
[362898753,1748515845087,-539.77793658,0.00025,3]
[362898755,1748515845097,-801720.24518384,0.00025,30]
[362899336,1748515948328,19990.011167,0.00024658,120]
[362899337,1748516006717,183.502391,0.00013699,2]
[362899338,1748516251456,1000.91328597,0.00024657,120]
[362899339,1748516703127,849.0,0.00024658,120]
[362899340,1748516731432,2000.0,0.00018192,120]
[362899341,1748516731819,202.27,0.0002328,120]
[362899347,1748516910764,200.0,0.00024565,120]
[362899349,1748516963191,175.36,0.00014805,2]
[362899350,1748516963623,219.2,0.00015421,2]
[362899352,1748516986815,4708.14358692,0.00016,2]
[362899353,1748516986836,291.85641308,0.00016,2]
[362899354,1748517002215,5000.0,0.00016,2]
[362899355,1748517017832,4274.54878692,0.00016,2]
[362899356,1748517017858,725.45121308,0.00016,2]
[362899393,1748517032254,-394.56,0.00017889,2]
[362899394,1748517032263,-438.4,0.00018506,2]
[362899395,1748517032273,-164.2,0.00019168,3]
[362899396,1748517032282,-164.2,0.00019168,3]
[362899397,1748517032290,-300.0,0.00019176,2]
[362899398,1748517032299,-13.46938864,0.00019176,2]
[362899399,1748517032310,-1186.53061136,0.00019176,2]
[362899400,1748517032319,-80.83079148,0.00019177,2]
[362899401,1748517032358,-586.42953745,0.00019177,2]
[362899402,1748517032368,-155.964,0.00019177,2]
[362899403,1748517032377,-500.0,0.00019177,2]
[362899404,1748517032385,-500.0,0.00019177,2]
[362899405,1748517032394,-301.07663144,0.00019177,2]
[362899406,1748517032403,-294.72916975,0.00019177,2]
[362899407,1748517032412,-494.95195481,0.00019177,2]
[362899408,1748517032421,-643.44624611,0.00019177,2]
[362899409,1748517032430,-500.0,0.00019177,2]
[362899410,1748517032440,-500.0,0.00019177,2]
[362899411,1748517032452,-241.60543375,0.00019177,2]
[362899412,1748517032463,-500.0,0.00019177,2]
[362899413,1748517032472,-500.0,0.00019177,2]
[362899414,1748517032482,-500.0,0.00019177,2]
[362899415,1748517032492,-500.0,0.00019177,2]
[362899416,1748517032501,-500.0,0.00019177,2]
[362899417,1748517032510,-500.0,0.00019177,2]
[362899418,1748517032519,-500.0,0.00019177,2]
[362899419,1748517032530,-500.0,0.00019177,2]
[362899420,1748517032542,-500.0,0.00019177,2]
[362899421,1748517032551,-500.0,0.00019177,2]
[362899422,1748517032561,-496.02524779,0.00019177,2]
[362899423,1748517032571,-500.0,0.00019177,2]
[362899424,1748517032581,-500.0,0.00019177,2]
[362899425,1748517032590,-550.0,0.00019177,2]
[362899426,1748517032600,-450.0,0.00019178,2]
[362899427,1748517032609,-400.0,0.00019178,2]
[362899428,1748517032620,-430.0,0.00019178,2]
[362899429,1748517032630,-430.0,0.00019178,2]
[362899430,1748517032640,-430.0,0.00019178,2]
[362899431,1748517032649,-430.0,0.00019178,2]
[362899432,1748517032659,-430.0,0.00019178,2]
[362899433,1748517032669,-430.0,0.00019178,2]
[362899434,1748517032680,-430.0,0.00019178,2]
[362899435,1748517032689,-446.26725662,0.00019178,2]
[362899436,1748517032698,-430.0,0.00019178,2]
[362899437,1748517032708,-430.0,0.00019178,2]
[362899438,1748517032718,-160.30031139,0.00019178,2]
[362899439,1748517032728,-430.0,0.00019178,2]
[362899440,1748517032737,-430.0,0.00019178,2]
[362899441,1748517032747,-430.0,0.00019178,2]
[362899442,1748517032756,-430.0,0.00019178,2]
[362899443,1748517032766,-430.0,0.00019178,2]
[362899444,1748517032777,-430.0,0.00019178,2]
[362899445,1748517032786,-430.0,0.00019178,2]
[362899446,1748517032796,-430.0,0.00019178,2]
[362899447,1748517032806,-489.51364884,0.00019178,2]
[362899448,1748517032816,-430.0,0.00019178,2]
[362899449,1748517032833,-430.0,0.00019178,2]
[362899450,1748517032846,-430.0,0.00019178,2]
[362899451,1748517032857,-430.0,0.00019178,2]
[362899452,1748517032867,-430.0,0.00019178,2]
[362899453,1748517032877,-475.36104579,0.00019178,2]
[362899454,1748517032887,-434.97166501,0.00019178,2]
[362899455,1748517032898,-430.0,0.00019178,2]
[362899456,1748517032907,-426.53693295,0.00019178,2]
[362899457,1748517032917,-430.0,0.00019178,2]
[362899458,1748517032927,-430.0,0.00019178,2]
[362899459,1748517032938,-430.0,0.00019178,2]
[362899460,1748517032948,-430.0,0.00019178,2]
[362899461,1748517032958,-430.0,0.00019178,2]
[362899462,1748517032968,-422.66987332,0.00019178,2]
[362899463,1748517032979,-430.0,0.00019178,2]
[362899464,1748517032988,-193.76318109,0.00019178,2]
[362899465,1748517032999,-435.9951939,0.00019178,2]
[362899466,1748517033008,-437.63121481,0.00019178,2]
[362899467,1748517033018,-430.0,0.00019178,2]
[362899468,1748517033028,-430.0,0.00019178,2]
[362899469,1748517033038,-436.67096407,0.00019178,2]
[362899470,1748517033048,-430.0,0.00019178,2]
[362899471,1748517033058,-430.0,0.00019178,2]
[362899472,1748517033069,-430.0,0.00019178,2]
[362899473,1748517033080,-430.0,0.00019178,2]
[362899474,1748517033089,-430.0,0.00019178,2]
[362899475,1748517033099,-435.81428046,0.00019178,2]
[362899476,1748517033109,-441.19447688,0.00019178,2]
[362899477,1748517033119,-531.67811651,0.00019178,2]
[362899478,1748517033129,-430.0,0.00019178,2]
[362899479,1748517033140,-520.0,0.00019178,2]
[362899480,1748517033150,-278.72171561,0.00019178,2]
[362899481,1748517033160,-430.0,0.00019178,2]
[362899482,1748517033170,-430.0,0.00019178,2]
[362899483,1748517033182,-430.0,0.00019178,2]
[362899484,1748517033192,-430.0,0.00019178,2]
[362899485,1748517033202,-430.0,0.00019178,2]
[362899486,1748517033213,-530.32295553,0.00019178,2]
[362899487,1748517033224,-430.0,0.00019178,2]
[362899488,1748517033233,-430.0,0.00019178,2]
[362899489,1748517033243,-431.38406047,0.00019178,2]
[362899490,1748517033253,-231.32561113,0.00019178,2]
[362899491,1748517033262,-430.87968809,0.00019178,2]
[362899492,1748517033271,-430.0,0.00019178,2]
[362899493,1748517033281,-376.14923766,0.00019178,2]
[362899494,1748517033291,-434.15968016,0.00019178,2]
[362899495,1748517033300,-437.60978903,0.00019178,2]
[362899496,1748517033310,-430.0,0.00019178,2]
[362899497,1748517033319,-430.0,0.00019178,2]
[362899498,1748517033329,-430.0,0.00019178,2]
[362899499,1748517033339,-473.87377456,0.00019178,2]
[362899500,1748517033349,-430.0,0.00019178,2]
[362899501,1748517033359,-494.39269028,0.00019178,2]
[362899502,1748517033368,-430.0,0.00019178,2]
[362899503,1748517033379,-276.72204258,0.00019178,2]
[362899504,1748517033388,-430.0,0.00019178,2]
[362899505,1748517033399,-430.0,0.00019178,2]
[362899506,1748517033408,-430.0,0.00019178,2]
[362899507,1748517033418,-430.0,0.00019178,2]
[362899508,1748517033428,-439.23290156,0.00019178,2]
[362899509,1748517033437,-434.28694993,0.00019178,2]
[362899510,1748517033449,-430.0,0.00019178,2]
[362899511,1748517033459,-436.47943303,0.00019178,2]
[362899512,1748517033468,-430.0,0.00019178,2]
[362899513,1748517033478,-430.0,0.00019178,2]
[362899514,1748517033489,-430.0,0.00019178,2]
[362899515,1748517033498,-430.0,0.00019178,2]
[362899516,1748517033508,-430.0,0.00019178,2]
[362899517,1748517033517,-434.46125129,0.00019178,2]
[362899518,1748517033529,-430.0,0.00019178,2]
[362899519,1748517033539,-430.0,0.00019178,2]
[362899520,1748517033548,-430.0,0.00019178,2]
[362899521,1748517033558,-400.52936527,0.00019178,2]
[362899522,1748517033568,-430.0,0.00019178,2]
[362899523,1748517033577,-430.0,0.00019178,2]
[362899524,1748517033587,-430.0,0.00019178,2]
[362899525,1748517033596,-307.33979848,0.00019178,2]
[362899526,1748517033606,-430.0,0.00019178,2]
[362899527,1748517033617,-430.0,0.00019178,2]
[362899528,1748517033627,-433.18760519,0.00019178,2]
[362899529,1748517033637,-430.0,0.00019178,2]
[362899530,1748517033646,-430.88810857,0.00019178,2]
[362899531,1748517033656,-500.0,0.00019178,2]
[362899532,1748517033665,-430.0,0.00019178,2]
[362899533,1748517033675,-430.0,0.00019178,2]
[362899534,1748517033685,-430.0,0.00019178,2]
[362899535,1748517033695,-430.0,0.00019178,2]
[362899536,1748517033704,-431.07859532,0.00019178,2]
[362899537,1748517033714,-393.72629953,0.00019178,2]
[362899538,1748517033724,-430.0,0.00019178,2]
[362899539,1748517033734,-430.0,0.00019178,2]
[362899540,1748517033744,-430.0,0.00019178,2]
[362899541,1748517033754,-430.0,0.00019178,2]
[362899542,1748517033764,-430.0,0.00019178,2]
[362899543,1748517033774,-430.0,0.00019178,2]
[362899544,1748517033784,-430.0,0.00019178,2]
[362899545,1748517033794,-430.0,0.00019178,2]
[362899546,1748517033803,-431.67504431,0.00019178,2]
[362899547,1748517033813,-433.01600142,0.00019178,2]
[362899548,1748517033823,-430.92291677,0.00019178,2]
[362899549,1748517033833,-430.0,0.00019178,2]
[362899550,1748517033843,-430.0,0.00019178,2]
[362899551,1748517033852,-430.0,0.00019178,2]
[362899552,1748517033863,-430.0,0.00019178,2]
[362899553,1748517033873,-431.14370387,0.00019178,2]
[362899554,1748517033882,-430.0,0.00019178,2]
[362899555,1748517033892,-430.0,0.00019178,2]
[362899556,1748517033901,-361.18800078,0.00019178,2]
[362899557,1748517033915,-430.0,0.00019178,2]
[362899558,1748517033925,-430.0,0.00019178,2]
[362899559,1748517033935,-433.12661651,0.00019178,2]
[362899560,1748517033945,-430.0,0.00019178,2]
[362899561,1748517033954,-430.0,0.00019178,2]
[362899562,1748517033965,-430.0,0.00019178,2]
[362899563,1748517033975,-430.0,0.00019178,2]
[362899564,1748517033986,-430.0,0.00019178,2]
[362899565,1748517033996,-430.0,0.00019178,2]
[362899566,1748517034007,-513.42475734,0.00019178,2]
[362899567,1748517034017,-430.0,0.00019178,2]
[362899568,1748517034027,-430.0,0.00019178,2]
[362899569,1748517034037,-450.0,0.00019178,2]
[362899570,1748517034047,-301.06911791,0.00019178,2]
[362899571,1748517034057,-430.0,0.00019178,2]
[362899572,1748517034067,-430.0,0.00019178,2]
[362899573,1748517034077,-450.0,0.00019178,2]
[362899574,1748517034087,-435.04594194,0.00019178,2]
[362899575,1748517034097,-430.0,0.00019178,2]
[362899576,1748517034107,-430.0,0.00019178,2]
[362899577,1748517034116,-430.0,0.00019178,2]
[362899578,1748517034127,-433.17532737,0.00019178,2]
[362899579,1748517034136,-420.51,0.00019178,2]
[362899580,1748517034146,-430.0,0.00019178,2]
[362899581,1748517034156,-436.88955463,0.00019178,2]
[362899582,1748517034167,-432.09244144,0.00019178,2]
[362899583,1748517034177,-437.419172,0.00019178,2]
[362899584,1748517034189,-430.0,0.00019178,2]
[362899585,1748517034199,-430.0,0.00019178,2]
[362899586,1748517034210,-430.0,0.00019178,2]
[362899587,1748517034221,-431.15870649,0.00019178,2]
[362899588,1748517034232,-404.38847281,0.00019178,2]
[362899589,1748517034243,-430.0,0.00019178,2]
[362899590,1748517034254,-402.32390117,0.00019178,2]
[362899591,1748517034266,-430.0,0.00019178,2]
[362899592,1748517034277,-402.74733377,0.00019178,2]
[362899593,1748517034288,-400.86320496,0.00019178,2]
[362899594,1748517034298,-401.71795561,0.00019178,2]
[362899595,1748517034309,-430.0,0.00019178,2]
[362899596,1748517034319,-401.2746521,0.00019178,2]
[362899597,1748517034458,-409.54582418,0.00019178,2]
[362899598,1748517034469,-407.1139216,0.00019178,2]
[362899599,1748517034479,-430.0,0.00019178,2]
[362899600,1748517034491,-430.0,0.00019178,2]
[362899601,1748517034501,-403.17788107,0.00019178,2]
[362899602,1748517034510,-430.0,0.00019178,2]
[362899603,1748517034522,-407.91675714,0.00019178,2]
[362899604,1748517034531,-404.75239092,0.00019178,2]
[362899605,1748517034541,-430.0,0.00019178,2]
[362899606,1748517034550,-430.0,0.00019178,2]
[362899607,1748517034559,-403.46663617,0.00019178,2]
[362899608,1748517034568,-430.0,0.00019178,2]
[362899609,1748517034577,-403.31642139,0.00019178,2]
[362899610,1748517034586,-408.288862,0.00019178,2]
[362899611,1748517034595,-435.21443288,0.00019178,2]
[362899612,1748517034605,-430.0,0.00019178,2]
[362899613,1748517034613,-430.0,0.00019178,2]
[362899614,1748517034623,-431.99047819,0.00019178,2]
[362899615,1748517034632,-454.90788779,0.00019178,2]
[362899616,1748517034641,-401.55043736,0.00019178,2]
[362899617,1748517034650,-430.0,0.00019178,2]
[362899618,1748517034659,-430.0,0.00019178,2]
[362899619,1748517034670,-403.16433165,0.00019178,2]
[362899620,1748517034679,-430.0,0.00019178,2]
[362899621,1748517034688,-506.17206728,0.00019178,2]
[362899622,1748517034698,-430.0,0.00019178,2]
[362899623,1748517034708,-430.0,0.00019178,2]
[362899624,1748517034718,-430.0,0.00019178,2]
[362899625,1748517034728,-430.0,0.00019178,2]
[362899626,1748517034736,-430.0,0.00019178,2]
[362899627,1748517034745,-430.0,0.00019178,2]
[362899628,1748517034752,-430.0,0.00019178,2]
[362899629,1748517034760,-430.0,0.00019178,2]
[362899630,1748517034767,-430.0,0.00019178,2]
[362899631,1748517034777,-430.0,0.00019178,2]
[362899632,1748517034787,-430.0,0.00019178,2]
[362899633,1748517034796,-430.0,0.00019178,2]
[362899634,1748517034806,-430.0,0.00019178,2]
[362899635,1748517034815,-430.0,0.00019178,2]
[362899636,1748517034825,-400.58724862,0.00019178,2]
[362899637,1748517034834,-437.06,0.00019178,2]
[362899638,1748517034844,-430.0,0.00019178,2]
[362899639,1748517034854,-430.0,0.00019178,2]
[362899640,1748517034863,-430.0,0.00019178,2]
[362899641,1748517034873,-430.0,0.00019178,2]
[362899642,1748517034882,-430.0,0.00019178,2]
[362899643,1748517034892,-430.0,0.00019178,2]
[362899644,1748517034901,-430.0,0.00019178,2]
[362899645,1748517034909,-430.0,0.00019178,2]
[362899646,1748517034918,-457.12849798,0.00019178,2]
[362899647,1748517034926,-430.0,0.00019178,2]
[362899648,1748517034935,-430.0,0.00019178,2]
[362899649,1748517034944,-1017.41,0.00019178,2]
[362899650,1748517034952,-430.0,0.00019178,2]
[362899651,1748517034962,-430.0,0.00019178,2]
[362899652,1748517034971,-430.0,0.00019178,2]
[362899653,1748517034979,-430.0,0.00019178,2]
[362899654,1748517034988,-470.0,0.00019178,2]
[362899655,1748517034997,-430.0,0.00019178,2]
[362899656,1748517035006,-304.23633894,0.00019178,2]
[362899657,1748517035015,-430.0,0.00019178,2]
[362899658,1748517035024,-430.0,0.00019178,2]
[362899659,1748517035034,-430.0,0.00019178,2]
[362899660,1748517035043,-933.59,0.00019178,2]
[362899661,1748517035052,-430.0,0.00019178,2]
[362899662,1748517035061,-470.0,0.00019178,2]
[362899663,1748517035070,-430.0,0.00019178,2]
[362899664,1748517035078,-400.0,0.00019178,2]
[362899665,1748517035087,-430.0,0.00019178,2]
[362899666,1748517035096,-430.0,0.00019178,2]
[362899667,1748517035104,-430.0,0.00019178,2]
[362899668,1748517035112,-400.0,0.00019178,2]
[362899669,1748517035120,-450.0,0.00019178,2]
[362899670,1748517035127,-430.0,0.00019178,2]
[362899671,1748517035134,-430.0,0.00019178,2]
[362899672,1748517035141,-430.0,0.00019178,2]
[362899673,1748517035148,-430.0,0.00019178,2]
[362899674,1748517035155,-450.0,0.00019178,2]
[362899675,1748517035162,-430.0,0.00019178,2]
[362899676,1748517035170,-430.0,0.00019178,2]
[362899677,1748517035178,-264.89659329,0.00019178,2]
[362899678,1748517035185,-400.0,0.00019178,2]
[362899679,1748517035195,-430.0,0.00019178,2]
[362899680,1748517035204,-430.0,0.00019178,2]
[362899681,1748517035214,-430.0,0.00019178,2]
[362899682,1748517035223,-430.0,0.00019178,2]
[362899683,1748517035233,-430.0,0.00019178,2]
[362899684,1748517035243,-430.0,0.00019178,2]
[362899685,1748517035252,-402.66794232,0.00019178,2]
[362899686,1748517035262,-430.0,0.00019178,2]
[362899687,1748517035271,-428.73375724,0.00019178,2]
[362899688,1748517035281,-430.0,0.00019178,2]
[362899689,1748517035290,-430.0,0.00019178,2]
[362899690,1748517035299,-430.0,0.00019178,2]
[362899691,1748517035309,-430.0,0.00019178,2]
[362899692,1748517035318,-430.0,0.00019178,2]
[362899693,1748517035328,-430.0,0.00019178,2]
[362899694,1748517035338,-667.95,0.00019178,2]
[362899695,1748517035347,-430.0,0.00019178,2]
[362899696,1748517035357,-450.0,0.00019178,2]
[362899697,1748517035367,-430.0,0.00019178,2]
[362899698,1748517035376,-450.0,0.00019178,2]
[362899699,1748517035386,-430.0,0.00019178,2]
[362899700,1748517035395,-501.5237928,0.00019178,2]
[362899701,1748517035405,-430.0,0.00019178,2]
[362899702,1748517035415,-430.0,0.00019178,2]
[362899703,1748517035424,-430.0,0.00019178,2]
[362899704,1748517035433,-430.0,0.00019178,2]
[362899705,1748517035451,-430.0,0.00019178,2]
[362899706,1748517035465,-430.0,0.00019178,2]
[362899707,1748517035479,-350.34277277,0.00019178,2]
[362899708,1748517035494,-430.0,0.00019178,2]
[362899709,1748517035505,-430.0,0.00019178,2]
[362899710,1748517035517,-430.0,0.00019178,2]
[362899711,1748517035530,-430.0,0.00019178,2]
[362899712,1748517035543,-431.43277652,0.00019178,2]
[362899713,1748517035556,-430.0,0.00019178,2]
[362899714,1748517035568,-430.0,0.00019178,2]
[362899715,1748517035582,-430.0,0.00019178,2]
[362899716,1748517035594,-430.0,0.00019178,2]
[362899717,1748517035607,-430.0,0.00019178,2]
[362899718,1748517035621,-430.0,0.00019178,2]
[362899719,1748517035633,-430.0,0.00019178,2]
[362899720,1748517035645,-430.0,0.00019178,2]
[362899721,1748517035657,-430.0,0.00019178,2]
[362899722,1748517035672,-430.0,0.00019178,2]
[362899723,1748517035683,-430.0,0.00019178,2]
[362899724,1748517035697,-679.15,0.00019178,2]
[362899725,1748517035710,-430.0,0.00019178,2]
[362899726,1748517035724,-430.0,0.00019178,2]
[362899727,1748517035737,-430.0,0.00019178,2]
[362899728,1748517035748,-430.0,0.00019178,2]
[362899729,1748517035760,-430.0,0.00019178,2]
[362899730,1748517035772,-431.52771499,0.00019178,2]
[362899731,1748517035785,-430.0,0.00019178,2]
[362899732,1748517035798,-430.0,0.00019178,2]
[362899733,1748517035810,-430.0,0.00019178,2]
[362899734,1748517035823,-433.02,0.00019178,2]
[362899735,1748517035836,-616.46,0.00019178,2]
[362899736,1748517035849,-430.0,0.00019178,2]
[362899737,1748517035863,-430.0,0.00019178,2]
[362899738,1748517035876,-430.0,0.00019178,2]
[362899739,1748517035891,-430.0,0.00019178,2]
[362899740,1748517035902,-430.0,0.00019178,2]
[362899741,1748517035913,-401.85675123,0.00019178,2]
[362899742,1748517035923,-342.11704127,0.00019178,2]
[362899743,1748517035935,-430.0,0.00019178,2]
[362899744,1748517035948,-430.0,0.00019178,2]
[362899745,1748517035961,-430.0,0.00019178,2]
[362899746,1748517035975,-500.0,0.00019178,2]
[362899747,1748517035987,-500.0,0.00019178,2]
[362899748,1748517035997,-430.0,0.00019178,2]
[362899749,1748517036008,-430.0,0.00019178,2]
[362899750,1748517036019,-1692.37,0.00019178,2]
[362899751,1748517036031,-430.0,0.00019178,2]
[362899752,1748517036044,-430.0,0.00019178,2]
[362899753,1748517036055,-430.0,0.00019178,2]
[362899754,1748517036066,-430.0,0.00019178,2]
[362899755,1748517036076,-430.0,0.00019178,2]
[362899756,1748517036087,-430.0,0.00019178,2]
[362899757,1748517036098,-430.0,0.00019178,2]
[362899758,1748517036108,-430.0,0.00019178,2]
[362899759,1748517036121,-430.0,0.00019178,2]
[362899760,1748517036134,-430.0,0.00019178,2]
[362899761,1748517036145,-407.4263301,0.00019178,2]
[362899762,1748517036157,-430.0,0.00019178,2]
[362899763,1748517036169,-430.0,0.00019178,2]
[362899764,1748517036180,-430.0,0.00019178,2]
[362899765,1748517036192,-430.0,0.00019178,2]
[362899766,1748517036203,-430.0,0.00019178,2]
[362899767,1748517036216,-458.93,0.00019178,2]
[362899768,1748517036227,-372.92209687,0.00019178,2]
[362899769,1748517036239,-430.0,0.00019178,2]
[362899770,1748517036251,-430.0,0.00019178,2]
[362899771,1748517036263,-430.0,0.00019178,2]
[362899772,1748517036274,-430.0,0.00019178,2]
[362899773,1748517036285,-430.0,0.00019178,2]
[362899774,1748517036296,-430.0,0.00019178,2]
[362899775,1748517036307,-430.0,0.00019178,2]
[362899776,1748517036318,-1754.99,0.00019178,2]
[362899777,1748517036330,-430.0,0.00019178,2]
[362899778,1748517036341,-430.0,0.00019178,2]
[362899779,1748517036354,-1606.18,0.00019178,2]
[362899780,1748517036364,-432.63233871,0.00019178,2]
[362899781,1748517036375,-500.0,0.00019178,2]
[362899782,1748517036386,-430.0,0.00019178,2]
[362899783,1748517036396,-430.0,0.00019178,2]
[362899784,1748517036408,-430.0,0.00019178,2]
[362899785,1748517036418,-464.47,0.00019178,2]
[362899786,1748517036430,-430.0,0.00019178,2]
[362899787,1748517036442,-518.4504205,0.00019178,2]
[362899788,1748517036454,-430.0,0.00019178,2]
[362899789,1748517036467,-430.0,0.00019178,2]